[Event "Gibraltar Junior Intl U16 2019"]
[Site "Caleta"]
[Date "2019.08.17"]
[Round "3.16"]
[White "Nayak, Aurideep"]
[Black "Gutierrez Lupion, Nuria"]
[Result "1-0"]
[ECO "B53"]
[WhiteElo "1546"]
[BlackElo "1712"]
[Annotator "NA"]
[PlyCount "59"]
[EventDate "2019.08.16"]
[EventType "swiss"]
[EventCountry "GGB"]
[SourceTitle "playchess.com"]
[Source "ChessBase"]
[SourceQuality "1"]
[TimeControl "6600+10"]

1. e4 {[%emt 0:00:15]} c5 {[%emt 0:00:07]} 2. Nf3 {[%emt 0:00:05]} d6 {[%emt 0:00:07]} 3. d4 {[%emt 0:00:04]} cxd4 {[%emt 0:00:07]} 4. Qxd4 {[%emt 0:00:01]} Nc6 {[%emt 0:01:04]} 5. Bb5 {[%emt 0:00:04]} Bd7 {[%emt 0:00:53]} 6. Bxc6 {[%emt 0:00:41]} bxc6 {[%emt 0:01:00]} 7. Nc3 {[%emt 0:01:47]} Nf6 {[%emt 0:06:33]} 8. Bg5 {[%emt 0:00:32]} e5 {[%emt 0:00:49]} 9. Qd3 {[%emt 0:00:43]} h6 {[%emt 0:01:58]} 10. Bh4 {[%emt 0:00:36]} Rb8 {[%emt 0:01:21]} 11. Nd2 {[%emt 0:02:04]} Be6 {[%emt 0:11:03]} 12. Nc4 {[%emt 0:05:51]} Qd7 {[%emt 0:10:29]} 13. O-O {[%emt 0:07:15]} Be7 {[%emt 0:06:51]} 14. b3 {[%emt 0:04:09]} Bxc4 {[%emt 0:08:13]} 15. bxc4 {[%emt 0:01:20]} O-O {[%emt 0:00:58]} 16. Rad1 {[%emt 0:01:49]} Rfd8 {[%emt 0:01:55]} 17. c5 {[%emt 0:03:26]} d5 {[%emt 0:10:52]} 18. Bxf6 {[%emt 0:02:21]} gxf6 {[%emt 0:00:56]} 19. exd5 {[%emt 0:00:47]} Bxc5 {[%emt 0:04:43]} 20. Ne4 {[%emt 0:01:14]} Be7 {[%emt 0:02:17]} 21. d6 {[%emt 0:00:34]} Qe6 {[%emt 0:00:50]} 22. Qg3+ {[%emt 0:00:27]} Kh8 {[%emt 0:02:02]} 23. dxe7 {[%emt 0:00:21]} Qxe7 {[%emt 0:00:17]} 24. Qh4 {[%emt 0:00:21]} Kg7 {[%emt 0:00:33]} 25. Qg4+ {[%emt 0:01:48]} Kh7 {[%emt 0:01:57]} 26. Qf5+ {[%emt 0:02:47]} Kg7 {[%emt 0:00:58]} 27. Rxd8 {[%emt 0:01:44]} Rxd8 {[%emt 0:00:33]} 28. f4 {[%emt 0:00:11]} Rd5 {[%emt 0:06:40]} 29. Qg4+ {[%emt 0:04:35]} Kh7 {[%emt 0:02:57]} 30. fxe5 {[%emt 0:00:22] Kg8} 1-0

[Event "Gibraltar Junior Intl U16 2019"]
[Site "Caleta"]
[Date "2019.08.17"]
[Round "3.17"]
[White "Mendis, Vidura"]
[Black "Hernandez Tellez, Claudia"]
[Result "1-0"]
[ECO "B23"]
[WhiteElo "1528"]
[BlackElo "1711"]
[Annotator "NA"]
[PlyCount "59"]
[EventDate "2019.08.16"]
[EventType "swiss"]
[EventCountry "GGB"]
[SourceTitle "playchess.com"]
[Source "ChessBase"]
[SourceQuality "1"]
[TimeControl "6600+10"]

1. e4 {[%emt 0:00:00]} c5 {[%emt 0:00:00]} 2. Nc3 {[%emt 0:00:01]} Nc6 {[%emt 0:00:23]} 3. f4 {[%emt 0:00:28]} g6 {[%emt 0:00:35]} 4. Nf3 {[%emt 0:00:37]} Bg7 {[%emt 0:00:25]} 5. Bb5 {[%emt 0:00:50]} Nd4 {[%emt 0:01:01]} 6. O-O {[%emt 0:00:47]} e6 {[%emt 0:00:39]} 7. e5 {[%emt 0:00:36]} a6 {[%emt 0:00:57]} 8. Be2 {[%emt 0:01:10]} d5 {[%emt 0:01:03]} 9. d3 {[%emt 0:01:58]} Ne7 {[%emt 0:05:55]} 10. a4 {[%emt 0:07:34]} Nec6 {[%emt 0:05:22]} 11. Bd2 {[%emt 0:01:11]} Bd7 {[%emt 0:14:16]} 12. a5 {[%emt 0:05:21]} Nxf3+ {[%emt 0:04:23]} 13. Bxf3 {[%emt 0:00:23]} Nd4 {[%emt 0:00:51]} 14. Ne2 {[%emt 0:03:42]} Nxf3+ {[%emt 0:04:42]} 15. Rxf3 {[%emt 0:00:13]} d4 {[%emt 0:00:15]} 16. Ng3 {[%emt 0:01:18]} f5 {[%emt 0:08:20]} 17. exf6 {[%emt 0:05:24]} Bxf6 {[%emt 0:06:04]} 18. Qe2 {[%emt 0:02:18]} O-O {[%emt 0:01:23]} 19. Ne4 {[%emt 0:00:21]} Bc6 {[%emt 0:01:57]} 20. Rff1 {[%emt 0:00:43]} Qe7 {[%emt 0:05:25]} 21. Rae1 {[%emt 0:01:13]} Rae8 {[%emt 0:01:39]} 22. Qg4 {[%emt 0:02:56]} e5 {[%emt 0:06:02]} 23. Nxf6+ {[%emt 0:01:19]} Rxf6 {[%emt 0:07:42]} 24. Rxe5 {[%emt 0:03:29]} Re6 {[%emt 0:03:26]} 25. Rfe1 {[%emt 0:03:24]} Bd7 {[%emt 0:01:38]} 26. Rxe6 {[%emt 0:00:19]} Bxe6 {[%emt 0:01:46]} 27. f5 {[%emt 0:00:39]} Qf6 {[%emt 0:01:46]} 28. Rxe6 {[%emt 0:01:06]} Rxe6 {[%emt 0:00:37]} 29. fxe6 {[%emt 0:00:08]} Qe7 {[%emt 0:00:11]} 30. Bg5 {[%emt 0:00:08]} 1-0

[Event "Gibraltar Junior Intl U16 2019"]
[Site "Caleta"]
[Date "2019.08.17"]
[Round "3.18"]
[White "Greco, Joseph"]
[Black "Hussain, Adam"]
[Result "0-1"]
[ECO "C01"]
[WhiteElo "1690"]
[BlackElo "1515"]
[Annotator "NA"]
[PlyCount "93"]
[EventDate "2019.08.16"]
[EventType "swiss"]
[EventCountry "GGB"]
[SourceTitle "playchess.com"]
[Source "ChessBase"]
[SourceQuality "1"]
[TimeControl "6600+10"]

1. e4 {[%emt 0:00:00]} e6 {[%emt 0:00:00]} 2. d4 {[%emt 0:00:00]} d5 {[%emt 0:00:00]} 3. Bd3 {[%emt 0:00:18]} c5 {[%emt 0:00:52]} 4. c3 {[%emt 0:03:19]} dxe4 {[%emt 0:02:27]} 5. Bxe4 {[%emt 0:00:22]} Nf6 {[%emt 0:00:07]} 6. Bf3 {[%emt 0:00:57]} cxd4 {[%emt 0:00:26]} 7. cxd4 {[%emt 0:00:51]} Be7 {[%emt 0:01:10]} 8. Nc3 {[%emt 0:01:26]} O-O {[%emt 0:03:02]} 9. Bf4 {[%emt 0:03:21]} Nd5 {[%emt 0:01:27]} 10. Nxd5 {[%emt 0:12:09]} exd5 {[%emt 0:00:33]} 11. Qb3 {[%emt 0:01:23]} Nc6 {[%emt 0:02:17]} 12. Ne2 {[%emt 0:01:49]} Bf6 {[%emt 0:10:03]} 13. Rd1 {[%emt 0:06:30]} Qe7 {[%emt 0:02:01]} 14. O-O {[%emt 0:02:12]} Be6 {[%emt 0:00:56]} 15. Rfe1 {[%emt 0:00:52]} Rfd8 {[%emt 0:02:06]} 16. Be3 {[%emt 0:14:06]} Rac8 {[%emt 0:01:44]} 17. Nc3 {[%emt 0:01:03]} Qd7 {[%emt 0:00:57]} 18. Be2 {[%emt 0:07:00]} Be7 {[%emt 0:03:08]} 19. Rc1 {[%emt 0:06:16]} a6 {[%emt 0:02:42]} 20. Na4 {[%emt 0:04:01]} Na5 {[%emt 0:01:14]} 21. Qd1 {[%emt 0:00:16]} Rxc1 {[%emt 0:00:56]} 22. Bxc1 {[%emt 0:00:09]} b5 {[%emt 0:00:13]} 23. Nc3 {[%emt 0:05:27]} Rc8 {[%emt 0:00:28]} 24. Qd2 {[%emt 0:07:49]} Bb4 {[%emt 0:02:23]} 25. Qe3 {[%emt 0:08:01]} Nc6 {[%emt 0:18:17]} 26. f4 {[%emt 0:06:47]} Qa7 {[%emt 0:00:40]} 27. Rd1 {[%emt 0:04:39]} Nxd4 {[%emt 0:01:21]} 28. Kh1 {[%emt 0:03:18]} Bc5 {[%emt 0:00:44]} 29. Bd3 {[%emt 0:03:40]} Qd7 {[%emt 0:07:25]} 30. Bb1 {[%emt 0:01:36]} b4 {[%emt 0:02:26]} 31. Ne2 {[%emt 0:02:22]} Nxe2 {[%emt 0:09:49]} 32. Qxe2 {[%emt 0:00:03]} Bg4 {[%emt 0:02:16]} 33. Qd3 {[%emt 0:00:01]} Bxd1 {[%emt 0:00:35]} 34. Qxd1 {[%emt 0:03:01]} f5 {[%emt 0:02:28]} 35. b3 {[%emt 0:00:04]} Bd4 {[%emt 0:00:25]} 36. Bd2 {[%emt 0:00:20]} Bc3 {[%emt 0:01:12]} 37. h3 {[%emt 0:00:10]} d4 {[%emt 0:00:25]} 38. Bd3 {[%emt 0:00:03]} a5 {[%emt 0:01:41]} 39. Bxc3 {[%emt 0:00:34]} Rxc3 {[%emt 0:00:24]} 40. Qe2 {[%emt 0:00:14]} Kf8 {[%emt 0:00:48]} 41. Kh2 {[%emt 0:00:02]} Qe7 {[%emt 0:00:18]} 42. Qf3 {[%emt 0:00:15]} g6 {[%emt 0:00:39]} 43. Qa8+ {[%emt 0:00:11]} Kg7 {[%emt 0:00:16]} 44. Bc4 {[%emt 0:00:12]} d3 {[%emt 0:02:25]} 45. Qd5 {[%emt 0:00:08]} Kh6 {[%emt 0:01:42]} 46. Bxd3 {[%emt 0:00:12]} Qe3 {[%emt 0:00:26]} 47. Bf1 {[%emt 0:00:13]} 0-1

[Event "Gibraltar Junior Intl U16 2019"]
[Site "Caleta"]
[Date "2019.08.17"]
[Round "3.19"]
[White "Guerreiro, Jose Velho"]
[Black "Aubury, Benjamin"]
[Result "1/2-1/2"]
[ECO "D00"]
[WhiteElo "1513"]
[BlackElo "1686"]
[Annotator "NA"]
[PlyCount "164"]
[EventDate "2019.08.16"]
[EventType "swiss"]
[EventCountry "GGB"]
[SourceTitle "playchess.com"]
[Source "ChessBase"]
[SourceQuality "1"]
[TimeControl "6600+10"]

1. d4 {[%emt 0:00:00]} Nf6 {[%emt 0:00:04]} 2. Nf3 {[%emt 0:00:10]} g6 {[%emt 0:00:34]} 3. Bg5 {[%emt 0:00:55]} Bg7 {[%emt 0:01:06]} 4. Nc3 {[%emt 0:05:26]} d5 {[%emt 0:00:51]} 5. e3 {[%emt 0:00:41]} O-O {[%emt 0:03:24]} 6. Bd3 {[%emt 0:02:40]} c6 {[%emt 0:07:43]} 7. O-O {[%emt 0:03:43]} a5 {[%emt 0:03:09]} 8. a4 {[%emt 0:06:11]} Na6 {[%emt 0:01:04]} 9. Na2 {[%emt 0:05:36]} Qb6 {[%emt 0:05:33]} 10. b3 {[%emt 0:02:09]} Be6 {[%emt 0:11:42]} 11. Qe2 {[%emt 0:17:37]} Rfe8 {[%emt 0:05:57]} 12. Nd2 {[%emt 0:05:13]} Bd7 {[%emt 0:10:02]} 13. c4 {[%emt 0:11:13]} Nb4 {[%emt 0:07:29]} 14. c5 {[%emt 0:01:53]} Qc7 {[%emt 0:01:12]} 15. Bf4 {[%emt 0:02:43]} Qd8 {[%emt 0:01:22]} 16. Nxb4 {[%emt 0:01:02]} axb4 {[%emt 0:00:02]} 17. Be5 {[%emt 0:04:09]} b6 {[%emt 0:04:34]} 18. Rfc1 {[%emt 0:02:49]} Ng4 {[%emt 0:04:35]} 19. Bxg7 {[%emt 0:00:42]} Kxg7 {[%emt 0:00:07]} 20. h3 {[%emt 0:00:45]} Nf6 {[%emt 0:00:37]} 21. Nf3 {[%emt 0:01:41]} Ra5 {[%emt 0:05:23]} 22. cxb6 {[%emt 0:06:48]} Qxb6 {[%emt 0:00:03]} 23. Ne5 {[%emt 0:01:06]} Rc8 {[%emt 0:02:59]} 24. Rc2 {[%emt 0:02:32]} Be8 {[%emt 0:09:01]} 25. Rac1 {[%emt 0:01:50]} c5 {[%emt 0:03:24]} 26. dxc5 {[%emt 0:07:49]} Raxc5 {[%emt 0:00:30]} 27. Rxc5 {[%emt 0:00:25]} Rxc5 {[%emt 0:00:18]} 28. Rxc5 {[%emt 0:00:06]} Qxc5 {[%emt 0:00:07]} 29. Qc2 {[%emt 0:00:15]} Qd6 {[%emt 0:01:06]} 30. Nf3 {[%emt 0:01:59]} e5 {[%emt 0:01:43]} 31. Bb5 {[%emt 0:06:25]} Bxb5 {[%emt 0:01:35]} 32. axb5 {[%emt 0:00:07]} d4 {[%emt 0:03:10]} 33. Qc6 {[%emt 0:00:59]} Qxc6 {[%emt 0:01:12]} 34. bxc6 {[%emt 0:00:06]} Nd5 {[%emt 0:01:47]} 35. e4 {[%emt 0:01:23]} Nb6 {[%emt 0:01:10]} 36. Nxe5 {[%emt 0:00:15]} Kf6 {[%emt 0:00:24]} 37. Nd3 {[%emt 0:00:36]} Ke6 {[%emt 0:00:37]} 38. Nxb4 {[%emt 0:00:30]} Kd6 {[%emt 0:01:01]} 39. Kf1 {[%emt 0:01:52]} f5 {[%emt 0:01:17]} 40. exf5 {[%emt 0:00:41]} gxf5 {[%emt 0:00:10]} 41. Ke2 {[%emt 0:00:14]} Kc5 {[%emt 0:00:15]} 42. Nd3+ {[%emt 0:00:11]} Kxc6 {[%emt 0:00:13]} 43. Ne5+ {[%emt 0:00:10]} Kd5 {[%emt 0:00:22]} 44. Nd3 {[%emt 0:00:35]} Nc8 {[%emt 0:00:48]} 45. g4 {[%emt 0:00:19]} Nd6 {[%emt 0:00:40]} 46. f3 {[%emt 0:00:19]} h6 {[%emt 0:00:36]} 47. Nf4+ {[%emt 0:00:21]} Ke5 {[%emt 0:00:24]} 48. Ng6+ {[%emt 0:00:07]} Kf6 {[%emt 0:00:57]} 49. Nf4 {[%emt 0:00:13]} Ke5 {[%emt 0:00:40]} 50. Nd3+ {[%emt 0:00:03]} Kd5 {[%emt 0:00:07]} 51. Nb4+ {[%emt 0:00:05]} Kc5 {[%emt 0:00:16]} 52. Nc2 {[%emt 0:00:02]} fxg4 {[%emt 0:00:52]} 53. hxg4 {[%emt 0:00:01]} Nf7 {[%emt 0:00:27]} 54. Kd3 {[%emt 0:00:02]} Ne5+ {[%emt 0:00:07]} 55. Ke4 {[%emt 0:00:13]} d3 {[%emt 0:01:15]} 56. Ne3 {[%emt 0:00:13]} Nc6 {[%emt 0:00:45]} 57. Kxd3 {[%emt 0:00:05]} Nb4+ {[%emt 0:00:02]} 58. Kd2 {[%emt 0:00:08]} Nc6 {[%emt 0:00:24]} 59. Nf5 {[%emt 0:00:10]} Ne5 {[%emt 0:00:04]} 60. Ke3 {[%emt 0:00:01]} Nf7 {[%emt 0:00:12]} 61. f4 {[%emt 0:00:08]} Kb4 {[%emt 0:00:12]} 62. Nd4 {[%emt 0:00:01]} Kc3 {[%emt 0:00:09]} 63. f5 {[%emt 0:00:25]} Ne5 {[%emt 0:00:09]} 64. Ne2+ {[%emt 0:00:30]} Kxb3 {[%emt 0:00:27]} 65. Kf4 {[%emt 0:00:00]} Nf7 {[%emt 0:00:07]} 66. f6 {[%emt 0:00:02]} Kc4 {[%emt 0:00:17]} 67. Kf5 {[%emt 0:00:02]} Nh8 {[%emt 0:00:49]} 68. Nf4 {[%emt 0:00:07]} Kd4 {[%emt 0:00:14]} 69. Ng6 {[%emt 0:00:49]} Nf7 {[%emt 0:00:01]} 70. Ne7 {[%emt 0:00:13]} Ng5 {[%emt 0:00:21]} 71. Ng8 {[%emt 0:00:07]} Nf7 {[%emt 0:00:22]} 72. Kg6 {[%emt 0:00:16]} Ne5+ {[%emt 0:00:06]} 73. Kf5 {[%emt 0:00:48]} Nf7 {[%emt 0:00:06]} 74. Ke6 {[%emt 0:00:02]} Ng5+ {[%emt 0:00:01]} 75. Ke7 {[%emt 0:00:07]} Ke5 {[%emt 0:00:48]} 76. Nxh6 {[%emt 0:00:26]} Kf4 {[%emt 0:00:20]} 77. Nf7 {[%emt 0:00:32]} Nh7 {[%emt 0:00:15]} 78. g5 {[%emt 0:00:15]} Kf5 {[%emt 0:00:03]} 79. g6 {[%emt 0:01:10]} Nxf6 {[%emt 0:00:22]} 80. g7 {[%emt 0:00:14]} Kg6 {[%emt 0:00:20]} 81. Kf8 {[%emt 0:00:09]} Nh7+ {[%emt 0:00:15]} 82. Kg8 {[%emt 0:00:03]} Nf6+ {[%emt 0:00:05]} 1/2-1/2

[Event "Gibraltar Junior Intl U16 2019"]
[Site "Caleta"]
[Date "2019.08.17"]
[Round "3.20"]
[White "Khan, Samir"]
[Black "Patel, Devan"]
[Result "0-1"]
[ECO "C52"]
[WhiteElo "1282"]
[BlackElo "1659"]
[Annotator "NA"]
[PlyCount "22"]
[EventDate "2019.08.16"]
[EventType "swiss"]
[EventCountry "GGB"]
[SourceTitle "playchess.com"]
[Source "ChessBase"]
[SourceQuality "1"]
[TimeControl "6600+10"]

1. e4 {[%emt 0:00:00]} e5 {[%emt 0:00:00]} 2. Nf3 {[%emt 0:00:00]} Nc6 {[%emt 0:00:00]} 3. Bc4 {[%emt 0:00:00]} Bc5 {[%emt 0:00:02]} 4. b4 {[%emt 0:00:02]} Bxb4 {[%emt 0:00:05]} 5. c3 {[%emt 0:00:04]} Ba5 {[%emt 0:02:10]} 6. d4 {[%emt 0:00:05]} d6 {[%emt 0:01:28]} 7. O-O {[%emt 0:00:10]} Nf6 {[%emt 0:00:45]} 8. d5 {[%emt 0:01:14]} Ne7 {[%emt 0:00:30]} 9. Qa4+ {[%emt 0:00:35]} c6 {[%emt 0:00:09]} 10. dxc6 {[%emt 0:00:42]} Nxc6 {[%emt 0:02:58]} 11. Bb5 {[%emt 0:02:28]} Qc7 {[%emt 0:03:57]} 0-1

[Event "Gibraltar Junior Intl U16 2019"]
[Site "Caleta"]
[Date "2019.08.17"]
[Round "3.21"]
[White "Gaspar Lopez, Rocio"]
[Black "Major, Richard"]
[Result "1/2-1/2"]
[ECO "C08"]
[WhiteElo "1367"]
[BlackElo "1615"]
[Annotator "NA"]
[PlyCount "88"]
[EventDate "2019.08.16"]
[EventType "swiss"]
[EventCountry "GGB"]
[SourceTitle "playchess.com"]
[Source "ChessBase"]
[SourceQuality "1"]
[TimeControl "6600+10"]

1. e4 {[%emt 0:00:00]} e6 {[%emt 0:00:53]} 2. d4 {[%emt 0:00:00]} d5 {[%emt 0:00:06]} 3. Nd2 {[%emt 0:00:02]} c5 {[%emt 0:00:07]} 4. exd5 {[%emt 0:00:04]} exd5 {[%emt 0:00:07]} 5. Ngf3 {[%emt 0:00:07]} Nf6 {[%emt 0:00:07]} 6. Bb5+ {[%emt 0:00:13]} Bd7 {[%emt 0:00:07]} 7. Bxd7+ {[%emt 0:00:04]} Nbxd7 {[%emt 0:00:09]} 8. O-O {[%emt 0:00:14]} Be7 {[%emt 0:00:20]} 9. dxc5 {[%emt 0:00:07]} Nxc5 {[%emt 0:00:26]} 10. Nb3 {[%emt 0:00:11]} O-O {[%emt 0:00:18]} 11. Nxc5 {[%emt 0:00:41]} Bxc5 {[%emt 0:00:10]} 12. Bg5 {[%emt 0:00:04]} Bb6 {[%emt 0:04:10]} 13. c3 {[%emt 0:01:17]} Re8 {[%emt 0:15:53]} 14. Bxf6 {[%emt 0:17:14]} Qxf6 {[%emt 0:00:02]} 15. Qxd5 {[%emt 0:02:47]} Re2 {[%emt 0:00:02]} 16. Qb3 {[%emt 0:00:29]} Rae8 {[%emt 0:00:38]} 17. Rad1 {[%emt 0:03:42]} g5 {[%emt 0:09:38]} 18. Nd4 {[%emt 0:35:02]} h5 {[%emt 0:00:08]} 19. Nxe2 {[%emt 0:10:26]} Rxe2 {[%emt 0:00:02]} 20. Rb1 {[%emt 0:09:41]} g4 {[%emt 0:00:02]} 21. Qd1 {[%emt 0:05:53]} Re5 {[%emt 0:04:15]} 22. g3 {[%emt 0:06:03]} Rg5 {[%emt 0:00:52]} 23. Qe2 {[%emt 0:01:37]} Re5 {[%emt 0:01:02]} 24. Qc4 {[%emt 0:03:06]} Rf5 {[%emt 0:03:15]} 25. Qe4 {[%emt 0:01:18]} Re5 {[%emt 0:05:39]} 26. Qxb7 {[%emt 0:02:29]} Re2 {[%emt 0:00:08]} 27. Qg2 {[%emt 0:00:12]} Kh7 {[%emt 0:05:24]} 28. a3 {[%emt 0:02:34]} h4 {[%emt 0:01:09]} 29. gxh4 {[%emt 0:01:38]} Qxh4 {[%emt 0:00:15]} 30. Qg3 {[%emt 0:00:11]} Qe7 {[%emt 0:01:02]} 31. b4 {[%emt 0:02:24]} Re6 {[%emt 0:00:26]} 32. Qd3+ {[%emt 0:00:58]} Kg7 {[%emt 0:02:06]} 33. c4 {[%emt 0:03:20]} Bc7 {[%emt 0:02:12]} 34. Qc3+ {[%emt 0:00:59]} Kg8 {[%emt 0:00:25]} 35. f4 {[%emt 0:00:20]} gxf3 {[%emt 0:02:06]} 36. Rxf3 {[%emt 0:00:03]} Rg6+ {[%emt 0:00:09]} 37. Rg3 {[%emt 0:00:15]} Bxg3 {[%emt 0:01:03]} 38. hxg3 {[%emt 0:00:04]} Qd6 {[%emt 0:02:39]} 39. Kg2 {[%emt 0:00:19]} Qc6+ {[%emt 0:01:29]} 40. Kg1 {[%emt 0:00:01]} Qd6 {[%emt 0:00:37]} 41. Kg2 {[%emt 0:00:09]} Qc6+ {[%emt 0:00:06]} 42. Kg1 {[%emt 0:00:17]} Qd6 {[%emt 0:00:12]} 43. Kf2 {[%emt 0:00:11]} Rf6+ {[%emt 0:00:50]} 44. Kg1 {[%emt 0:00:00]} Rg6 {[%emt 0:00:43]} 1/2-1/2

[Event "Gibraltar Junior Intl U16 2019"]
[Site "Caleta"]
[Date "2019.08.17"]
[Round "3.22"]
[White "Dhanwani, Aryan"]
[Black "Guilfanov, Raphael"]
[Result "1/2-1/2"]
[ECO "C50"]
[WhiteElo "1319"]
[BlackElo "1493"]
[Annotator "NA"]
[PlyCount "29"]
[EventDate "2019.08.16"]
[EventType "swiss"]
[EventCountry "GGB"]
[SourceTitle "playchess.com"]
[Source "ChessBase"]
[SourceQuality "1"]
[TimeControl "6600+10"]

1. e4 {[%emt 0:01:37]} e5 {[%emt 0:00:00]} 2. Nf3 {[%emt 0:00:55]} Nc6 {[%emt 0:00:10]} 3. Bc4 {[%emt 0:00:13]} Bc5 {[%emt 0:00:11]} 4. Nc3 {[%emt 0:00:43]} Nf6 {[%emt 0:00:36]} 5. d3 {[%emt 0:00:30]} O-O {[%emt 0:01:41]} 6. Bg5 {[%emt 0:00:23]} d6 {[%emt 0:02:02]} 7. Nd5 {[%emt 0:00:42]} Bg4 {[%emt 0:00:36]} 8. Nxf6+ {[%emt 0:01:12]} gxf6 {[%emt 0:00:23]} 9. Bh6 {[%emt 0:00:10]} Re8 {[%emt 0:01:31]} 10. h3 {[%emt 0:11:10]} Bh5 {[%emt 0:02:14]} 11. g4 {[%emt 0:01:24]} Bg6 {[%emt 0:00:52]} 12. h4 {[%emt 0:01:34]} Ne7 {[%emt 0:01:00]} 13. h5 {[%emt 0:03:47]} d5 {[%emt 0:00:33]} 14. exd5 {[%emt 0:14:09]} e4 {[%emt 0:00:25]} 15. hxg6 {[%emt 0:10:27]} 1/2-1/2

[Event "Gibraltar Junior Intl U16 2019"]
[Site "Caleta"]
[Date "2019.08.17"]
[Round "3.24"]
[White "Harbinson, Alec Ryan"]
[Black "Rayner, Hugo"]
[Result "0-1"]
[ECO "B72"]
[WhiteElo "1118"]
[BlackElo "1448"]
[Annotator "NA"]
[PlyCount "89"]
[EventDate "2019.08.16"]
[EventType "swiss"]
[EventCountry "GGB"]
[SourceTitle "playchess.com"]
[Source "ChessBase"]
[SourceQuality "1"]
[TimeControl "6600+10"]

1. e4 {[%emt 0:00:00]} c5 {[%emt 0:00:00]} 2. Nf3 {[%emt 0:00:00]} d6 {[%emt 0:00:01]} 3. d4 {[%emt 0:01:23]} cxd4 {[%emt 0:00:04]} 4. Nxd4 {[%emt 0:00:14]} Nf6 {[%emt 0:00:04]} 5. Nc3 {[%emt 0:00:11]} g6 {[%emt 0:00:04]} 6. Be3 {[%emt 0:00:55]} Bg7 {[%emt 0:00:25]} 7. Bc4 {[%emt 0:01:29]} O-O {[%emt 0:00:16]} 8. Qd2 {[%emt 0:01:58]} Ng4 {[%emt 0:02:37]} 9. f3 {[%emt 0:03:58]} Nxe3 {[%emt 0:00:29]} 10. Qxe3 {[%emt 0:00:09]} Nc6 {[%emt 0:00:22]} 11. Nde2 {[%emt 0:00:37]} Bd7 {[%emt 0:01:09]} 12. g4 {[%emt 0:12:04]} Rc8 {[%emt 0:03:18]} 13. Bb3 {[%emt 0:01:08]} b5 {[%emt 0:07:44]} 14. h4 {[%emt 0:09:50]} b4 {[%emt 0:06:15]} 15. Nd1 {[%emt 0:01:03]} Qb6 {[%emt 0:10:19]} 16. Qxb6 {[%emt 0:02:50]} axb6 {[%emt 0:00:07]} 17. h5 {[%emt 0:08:31]} gxh5 {[%emt 0:03:59]} 18. Rxh5 {[%emt 0:05:58]} Ne5 {[%emt 0:02:24]} 19. Rh3 {[%emt 0:04:59]} h5 {[%emt 0:05:53]} 20. Rg3 {[%emt 0:09:17]} hxg4 {[%emt 0:01:37]} 21. fxg4 {[%emt 0:00:26]} Bxg4 {[%emt 0:00:36]} 22. Nf4 {[%emt 0:01:54]} Bf6 {[%emt 0:04:03]} 23. Kf1 {[%emt 0:07:34]} Kh7 {[%emt 0:13:31]} 24. Ne3 {[%emt 0:01:24]} Bg5 {[%emt 0:04:04]} 25. Nxg4 {[%emt 0:04:40]} Bxf4 {[%emt 0:00:33]} 26. Rh3+ {[%emt 0:00:23]} Kg6 {[%emt 0:00:33]} 27. Ne3 {[%emt 0:03:00]} Bxe3 {[%emt 0:09:02]} 28. Rxe3 {[%emt 0:00:13]} Rh8 {[%emt 0:00:50]} 29. Kg2 {[%emt 0:01:20]} Kg5 {[%emt 0:06:31]} 30. Rf1 {[%emt 0:08:58]} Rh4 {[%emt 0:08:14]} 31. Re2 {[%emt 0:07:19]} Rg4+ {[%emt 0:02:16]} 32. Kf2 {[%emt 0:00:18]} Rf4+ {[%emt 0:01:02]} 33. Ke1 {[%emt 0:00:52]} Rxf1+ {[%emt 0:00:26]} 34. Kxf1 {[%emt 0:00:06]} Nc4 {[%emt 0:01:30]} 35. Bxc4 {[%emt 0:02:36]} Rxc4 {[%emt 0:00:09]} 36. e5 {[%emt 0:01:09]} d5 {[%emt 0:03:17]} 37. Rf2 {[%emt 0:04:00]} Rf4 {[%emt 0:00:46]} 38. Rxf4 {[%emt 0:00:05]} Kxf4 {[%emt 0:00:04]} 39. Ke2 {[%emt 0:00:14]} Ke4 {[%emt 0:03:19]} 40. e6 {[%emt 0:00:55]} f5 {[%emt 0:00:24]} 41. c3 {[%emt 0:00:14]} bxc3 {[%emt 0:00:20]} 42. bxc3 {[%emt 0:00:02]} f4 {[%emt 0:00:41]} 43. a3 {[%emt 0:00:24]} b5 {[%emt 0:00:25]} 44. Kf2 {[%emt 0:01:32]} f3 {[%emt 0:00:31]} 45. Kg3 {[%emt 0:00:07]} 0-1

[Event "Gibraltar Junior Intl U16 2019"]
[Site "Caleta"]
[Date "2019.08.18"]
[Round "4.1"]
[White "Revaliente Montoya, Ciro"]
[Black "Garrido Outon, Alex"]
[Result "1/2-1/2"]
[ECO "A07"]
[WhiteElo "2006"]
[BlackElo "2231"]
[Annotator "NA"]
[PlyCount "36"]
[EventDate "2019.08.16"]
[EventType "swiss"]
[EventCountry "GGB"]
[SourceTitle "playchess.com"]
[Source "ChessBase"]
[SourceQuality "1"]
[TimeControl "6600+10"]

1. Nf3 {[%emt 0:00:00]} Nf6 {[%emt 0:00:09]} 2. g3 {[%emt 0:00:00]} d5 {[%emt 0:00:39]} 3. Bg2 {[%emt 0:00:16]} Bf5 {[%emt 0:00:24]} 4. d3 {[%emt 0:00:28]} e6 {[%emt 0:00:10]} 5. O-O {[%emt 0:00:06]} h6 {[%emt 0:01:52]} 6. Nfd2 {[%emt 0:01:10]} Be7 {[%emt 0:02:32]} 7. e4 {[%emt 0:00:36]} Bh7 {[%emt 0:03:25]} 8. f4 {[%emt 0:03:11]} O-O {[%emt 0:01:41]} 9. g4 {[%emt 0:05:32]} dxe4 {[%emt 0:12:10]} 10. dxe4 {[%emt 0:00:08]} Nc6 {[%emt 0:01:42]} 11. Nc3 {[%emt 0:02:47]} Bb4 {[%emt 0:09:37]} 12. Kh1 {[%emt 0:04:19]} Qd4 {[%emt 0:04:23]} 13. Ne2 {[%emt 0:06:31]} Qd7 {[%emt 0:03:49]} 14. c3 {[%emt 0:02:05]} Bc5 {[%emt 0:03:28]} 15. Ng3 {[%emt 0:00:18]} Rfd8 {[%emt 0:10:27]} 16. e5 {[%emt 0:07:26]} Ne8 {[%emt 0:02:17]} 17. Qf3 {[%emt 0:02:11]} Qd3 {[%emt 0:01:18]} 18. Nde4 {[%emt 0:02:59]} Bb6 {[%emt 0:01:09]} 1/2-1/2